[Event "2nd Serbia Open Masters 2022"]
[Site "Novi Sad"]
[Date "2022.07.03"]
[Round "6.4"]
[White "Puranik, Abhimanyu"]
[Black "Sturt, Raven"]
[Result "1/2-1/2"]
[ECO "B76"]
[WhiteElo "2608"]
[BlackElo "2438"]
[Annotator "TA"]
[PlyCount "144"]
[EventDate "2022.06.28"]
[EventType "swiss"]
[EventCountry "SRB"]
[SourceTitle "playchess.com"]
[Source "ChessBase"]
[SourceQuality "1"]
[TimeControl "40/5400+30:900+30"]

{[%evp 28,144,54,41,39,7,48,36,49,42,42,49,54,51,54,50,69,44,50,52,44,45,55,46,60,0,-18,-35,0,0,0,0,0,0,59,45,150,142,125,125,127,122,127,121,138,114,212,208,209,204,211,0,72,0,202,216,216,215,212,50,45,-78,-69,-1553,-76,-68,-77,-94,-27,-152,-50,-154,-154,-154,-143,-368,-147,-1250,-1229,-998,-880,-4150,-3259,-2104,-1451,-1862,-1656,-1470,-1224,-1023,-489,-441,-441,-441,-441,-360,-360,-441,-441,-441,-441,-441,-441,-29937,-12849,-989,-441,-441,0,-35,0,0,0,0,0,0,0,0,0]} 1. e4 {[%emt 0:00:27]} c5 {[%emt 0:00:03]} 2. Nf3 {[%emt 0:00:07]} d6 {[%emt 0:00:04]} 3. d4 {[%emt 0:00:04]} cxd4 {[%emt 0:00:03]} 4. Nxd4 {[%emt 0:00:04]} Nf6 {[%emt 0:00:06]} 5. Nc3 {[%emt 0:00:05]} g6 {[%emt 0:00:03]} 6. Be3 {[%emt 0:01:01]} Bg7 {[%emt 0:00:05]} 7. f3 {[%emt 0:00:06]} O-O {[%emt 0:00:05]} 8. Qd2 {[%emt 0:01:36]} Nc6 {[%emt 0:00:04]} 9. O-O-O {[%emt 0:01:26]} d5 {[%emt 0:00:04]} 10. exd5 {[%emt 0:03:20]} Nxd5 {[%emt 0:00:05]} 11. Nxc6 {[%emt 0:00:48]} bxc6 {[%emt 0:00:04]} 12. Bd4 {[%emt 0:00:37]} e5 {[%emt 0:00:06]} 13. Bc5 {[%emt 0:00:04]} Re8 {[%emt 0:00:04] is the new trend.} 14. Bc4 {[%emt 0:09:54]} Be6 {[%emt 0:01:04]} 15. Ne4 {[%emt 0:00:22]} Qc7 {[%emt 0:00:46] B76: Sicilian Dragon: Yugoslav Attack, 9 g4 and 9 0-0-0.} 16. h4 {[%emt 0:02:39][%cal Bh2h4,Bh4h5,Bh5h6][%mdl 32]} Red8 {[%emt 0:13:10]} 17. h5 {[%emt 0:28:01] [#]} Nf4 $146 {[%emt 0:24:47] White is slightly better.} ({Predecessor:} 17... Nf6 18. Nxf6+ Bxf6 19. Qe2 Bxc4 20. Qxc4 Rxd1+ 21. Kxd1 e4 22. hxg6 hxg6 23. c3 Qg3 24. Qxe4 Qxg2 {½-½ (31) Keller,T-Hartl,H LSS email 2006}) 18. Bd6 {[%emt 0:08:45]} Qc8 {[%emt 0:00:46]} 19. h6 {[%emt 0:06:23]} Bh8 {[%emt 0:09:35]} 20. g3 {[%emt 0:03:17]} Bxc4 {[%emt 0:07:29]} 21. gxf4 {[%emt 0:00:23]} Qf5 {[%emt 0:01:06]} 22. fxe5 {[%emt 0:05:02]} Bxe5 {[%emt 0:01:44]} 23. Rhe1 {[%emt 0:02:19]} Bh8 {[%emt 0:01:21]} (23... Qxf3 $2 24. Bxe5 (24. Ng5 Qxd1+ 25. Qxd1 Rxd6 $16) 24... Rxd2 25. Rxd2 $18) 24. Qe3 {[%emt 0:02:19]} Bd5 {[%emt 0:08:24]} (24... Qb5 25. b3 $18) 25. Bc7 {[%emt 0:00:15]} Rf8 {[%emt 0:01:52]} 26. Nc3 {[%emt 0:01:07]} (26. b3 $14) 26... Bxf3 $11 {[%emt 0:04:36]} 27. Rd2 {[%emt 0:07:46][%cal Bd1d2,Bd2e2,Be2e7][%mdl 32]} Bd5 {[%emt 0:03:57] This bishop pair is nice.} 28. Bd6 {[%emt 0:00:15]} Rfd8 {[%emt 0:02:20]} 29. Nxd5 {[%emt 0:01:15]} cxd5 {[%emt 0:00:02]} 30. Rde2 {[%emt 0:00:10][%cal Oe3e8] Intending Qe8+! and mate.} Qd7 {[%emt 0:04:33] Inhibits Qe8+.} (30... Rxd6 $2 31. Qe8+ $3 {[%mdl 512]} Rxe8 32. Rxe8#) (30... Bxb2+ $2 31. Kxb2 Qf6+ 32. Qe5 Qxe5+ 33. Rxe5 $18) (30... Qc8 $1 $11) 31. Qf4 $1 $14 {[%emt 0:02:55][%cal Oe2e7] Re7! is the strong threat.} Re8 {[%emt 0:04:31]} (31... Qxd6 $2 32. Qxd6 (32. Re8+ Rxe8 33. Rxe8+ Rxe8 $16) 32... Rf8 33. Re7 $18) (31... Bxb2+ 32. Kxb2 f6 33. Qxf6 $1 Qf7 34. Qd4 $1 Rab8+ 35. Bxb8 Qf8 36. Bd6 $1 {[%mdl 512]} Rxd6 37. Re8) (31... Qb5 $1 $14 32. Be5 Re8) 32. Re7 $16 {[%emt 0:00:45]} Rxe7 {[%emt 0:00:09]} 33. Rxe7 $40 {[%emt 0:00:06][%csl Ge7][%cal Rf4f7][%mdl 128] Black is in trouble.} Qf5 {[%emt 0:00:03]} 34. Qxf5 {[%emt 0:03:22] White is much more active.} gxf5 {[%emt 0:00:02][%mdl 4096] Endgame KRB-KRB} 35. Rd7 {[%emt 0:02:01]} Re8 {[%emt 0:07:26]} 36. Bf4 {[%emt 0:02:37]} Bf6 {[%emt 0:00:56]} (36... Kf8 $16 {is a better defense.}) 37. Rxa7 $18 {[%emt 0:01:49]} ({Much less strong is} 37. Rxd5 $6 Re4 38. Rc5 (38. Rxf5 $2 Rxf4 39. Ra5 Bd4 $19) 38... Kf8 39. Bd6+ (39. Rxf5 $2 Rxf4 40. Rc5 Bd4 $19) 39... Ke8 40. Rxf5 Re1+ 41. Kd2 Re6 $16) 37... Kf8 {[%emt 0:01:37]} 38. Bd6+ $1 {[%emt 0:01:12]} Kg8 {[%emt 0:00:02]} 39. Bf4 {[%emt 0:00:07] Against Bg5} (39. b4 $18 {is more deadly.}) 39... Kf8 $1 $16 {[%emt 0:00:02]} 40. Bd6+ {[%emt 0:00:00]} (40. Bd2 $16) 40... Kg8 $18 {[%emt 0:00:00]} 41. b4 {[%emt 0:12:27]} Bg5+ {[%emt 0:06:00]} 42. Kd1 $1 {[%emt 0:00:06]} f4 {[%emt 0:02:10]} 43. b5 $2 {[%emt 0:07:33]} (43. Bc5 $18) 43... f3 $1 $14 {[%emt 0:01:28]} 44. Bc5 {[%emt 0:00:55]} (44. Bg3 $1 $14 {was forced to keep a grip.}) 44... Bh4 $1 $17 {[%emt 0:02:32][%cal Od5d4]} 45. a4 $2 {[%emt 0:00:45][%mdl 8192] [#]} (45. Ra4 $15 f2 46. Rg4+ Kh8 47. Bd4+ f6 48. Bxf2 Bxf2 49. Rg7) 45... f2 $2 {[%emt 0:00:24]} (45... d4 $1 $19 46. Bxd4 Rd8) 46. Bxf2 {[%emt 0:00:02]} Bxf2 {[%emt 0:00:05] KRB-KR} 47. Rd7 {[%emt 0:00:08]} Be1 {[%emt 0:04:51]} (47... Bb6 $17 {Black wants to play ...d4.} 48. Rxd5 Kf8) 48. Kc1 {[%emt 0:01:22]} (48. c3 $1 $11 {was the only way to keep the balance.}) 48... f5 {[%emt 0:05:36]} (48... Bc3 $17 {[%cal Re8e1]} 49. Kb1 Kf8) 49. Rxd5 {[%emt 0:00:07]} (49. c4 $1 $15) 49... Bc3 {[%emt 0:02:25]} 50. Kb1 {[%emt 0:00:18]} Rf8 {[%emt 0:00:47]} 51. Ka2 $2 {[%emt 0:01:47] [#]} (51. b6 $17 {was necessary.}) 51... f4 $2 {[%emt 0:00:07]} (51... Ba5 $1 $19 {has better winning chances. Threatens to win with ...f4.} 52. Kb3 f4 53. Rg5+ Kh8) 52. Kb3 $2 {[%emt 0:00:07][%mdl 8192]} (52. b6 $17 Kf7 53. b7 (53. Rf5+ $2 Ke7 $19)) 52... Ba5 $19 {[%emt 0:00:19] Hoping for ...f3.} 53. Rg5+ {[%emt 0:00:25]} Kh8 {[%emt 0:00:37]} 54. c4 {[%emt 0:00:22]} Bb6 {[%emt 0:00:50]} 55. Rd5 {[%emt 0:00:27]} f3 {[%emt 0:00:05] And now ...f2 would win.} 56. Rd1 {[%emt 0:00:05]} f2 {[%emt 0:00:03]} 57. Rf1 {[%emt 0:00:02]} Bc5 {[%emt 0:01:50]} 58. a5 {[%emt 0:00:07]} Rf3+ {[%emt 0:00:03]} (58... Kg8 $142 59. b6 Kf7) 59. Kc2 {[%emt 0:01:23]} Kg8 {[%emt 0:00:25]} 60. b6 {[%emt 0:00:08]} Kf7 {[%emt 0:00:12]} 61. b7 {[%emt 0:00:24]} Ba7 {[%emt 0:00:08] aiming for ...Ke6.} 62. c5 {[%emt 0:00:55]} Ke6 {[%emt 0:00:07]} 63. Kd2 {[%emt 0:00:16]} Rf8 {[%emt 0:00:14]} 64. Ke2 {[%emt 0:00:43]} Bxc5 {[%emt 0:00:06]} 65. a6 {[%emt 0:00:24]} (65. Rd1 $19 Ba7 66. Kf1) 65... Ba7 {[%emt 0:02:24]} (65... Kd6 $142 66. Rb1 Kc7 67. Kf1 Rg8 68. Ke2 Re8+ 69. Kf1 Kb8 70. Rc1 Bb6 71. Rb1 Ka7 72. Rd1 Rg8 73. Ke2 Rg1 74. Rf1 Kb8 75. Rxf2 Bxf2 76. Kd2 Rg6 77. Kd3 Rxa6 78. Ke2 Rf6 79. Kd3 Rxh6 80. Ke2 Rf6 81. Kd3 h5 82. Ke4 h4 83. Ke5 Rb6 84. Kf4 h3 85. Kf3 Be1 86. Kg4 h2 87. Kf5 h1=Q 88. Kf4 Rf6+ 89. Ke3 Qd5 90. Ke2 Qd2#) 66. Rd1 {[%emt 0:00:10]} Ke7 {[%emt 0:00:39]} (66... Ke5 $142 {Strongly threatening ...Re8.} 67. Rb1 Kd6) 67. Kf1 {[%emt 0:00:43]} Ke6 $2 {[%emt 0:00:46]} ({Black should try} 67... Rg8 $19 {( -> ...Rg1+)} 68. Ke2 Ke6) 68. Rd2 {[%emt 0:00:42]} Ke5 {[%emt 0:00:08] White must now prevent ...Ke6.} (68... Rf6 $5 {[%cal Rf6f8]}) 69. Rc2 $1 {[%emt 0:00:40] The position is equal.} Rf4 {[%emt 0:00:37]} 70. Rb2 {[%emt 0:00:43]} Rf8 {[%emt 0:00:15]} 71. Rc2 $1 {[%emt 0:00:02]} Rf4 {[%emt 0:00:49]} 72. Rb2 {[%emt 0:00:06]} Rf8 {[%emt 0:00:34] Weighted Error Value: White=0.64/Black=0.50} 1/2-1/2